[Event "Late-Titled-Tuesday-Blitz-February-20-2024"]
[Site "Chess.com"]
[Date "2024.02.20"]
[Round "8"]
[White "a_kandil"]
[Black "Mesa_1"]
[Result "1-0"]
[WhiteElo "2442"]
[BlackElo "2538"]
[TimeControl "180+1"]
[EndTime "15:28:34 PST"]
[Termination "a_kandil won by checkmate"]

1. e4 {[%clk 0:03:00]} 1... d5 {[%clk 0:02:57]} 2. exd5 {[%clk 0:02:59.5]} 2...
Qxd5 {[%clk 0:02:57.9]} 3. Nc3 {[%clk 0:02:59.9]} 3... Qa5 {[%clk 0:02:58.4]} 4.
b4 {[%clk 0:03:00.1]} 4... Qxb4 {[%clk 0:02:57.4]} 5. Rb1 {[%clk 0:03:00.7]}
5... Qd6 {[%clk 0:02:57.7]} 6. Nf3 {[%clk 0:03:01.1]} 6... Nf6 {[%clk
0:02:56.3]} 7. d4 {[%clk 0:02:55.3]} 7... e6 {[%clk 0:02:55.8]} 8. Nb5 {[%clk
0:02:55.2]} 8... Qd8 {[%clk 0:02:55.1]} 9. Bf4 {[%clk 0:02:55]} 9... Bd6 {[%clk
0:02:52.6]} 10. Nxd6+ {[%clk 0:02:53.5]} 10... cxd6 {[%clk 0:02:53.5]} 11. Bd3
{[%clk 0:02:53.7]} 11... O-O {[%clk 0:02:53]} 12. O-O {[%clk 0:02:53.2]} 12...
Nc6 {[%clk 0:02:53.6]} 13. Qd2 {[%clk 0:02:47.2]} 13... b6 {[%clk 0:02:45]} 14.
h3 {[%clk 0:02:32.4]} 14... Bb7 {[%clk 0:02:44]} 15. Rfe1 {[%clk 0:02:30.2]}
15... Ne7 {[%clk 0:02:41.7]} 16. Ng5 {[%clk 0:02:25]} 16... h6 {[%clk
0:02:27.4]} 17. Ne4 {[%clk 0:02:22.9]} 17... Nxe4 {[%clk 0:02:25.4]} 18. Bxe4
{[%clk 0:02:23.8]} 18... Bxe4 {[%clk 0:02:26.1]} 19. Rxe4 {[%clk 0:02:24.4]}
19... Rc8 {[%clk 0:02:15.9]} 20. Rb3 {[%clk 0:02:11]} 20... Ng6 {[%clk
0:02:09.5]} 21. Rg3 {[%clk 0:01:47]} 21... Kh7 {[%clk 0:02:02.8]} 22. c3 {[%clk
0:01:22]} 22... d5 {[%clk 0:01:49]} 23. Re1 {[%clk 0:01:16.1]} 23... Qf6 {[%clk
0:01:42.9]} 24. Be3 {[%clk 0:01:13.4]} 24... Rc4 {[%clk 0:01:35.8]} 25. h4
{[%clk 0:01:04.5]} 25... Rfc8 {[%clk 0:01:33.2]} 26. Rf3 {[%clk 0:00:55.7]}
26... Qe7 {[%clk 0:01:29.1]} 27. h5 {[%clk 0:00:55.9]} 27... Nh4 {[%clk
0:01:29]} 28. Rh3 {[%clk 0:00:42.3]} 28... Nf5 {[%clk 0:01:26.2]} 29. Bf4 {[%clk
0:00:42.3]} 29... Qa3 {[%clk 0:01:18.5]} 30. g4 {[%clk 0:00:32.9]} 30... Ne7
{[%clk 0:01:08.8]} 31. Ree3 {[%clk 0:00:26]} 31... b5 {[%clk 0:00:54.5]} 32.
Rhf3 {[%clk 0:00:25.6]} 32... Kg8 {[%clk 0:00:48.4]} 33. Rd3 {[%clk 0:00:21.7]}
33... b4 {[%clk 0:00:45.6]} 34. Bxh6 {[%clk 0:00:18.7]} 34... gxh6 {[%clk
0:00:40.2]} 35. Qxh6 {[%clk 0:00:13.2]} 35... Rxc3 {[%clk 0:00:40.5]} 36. Qg5+
{[%clk 0:00:12.8]} 36... Kf8 {[%clk 0:00:38]} 37. Qf6 {[%clk 0:00:12.3]} 37...
Ke8 {[%clk 0:00:25.9]} 38. Qxf7+ {[%clk 0:00:11.8]} 38... Kd7 {[%clk 0:00:26.6]}
39. Rfe3 {[%clk 0:00:12.3]} 39... R8c6 {[%clk 0:00:25]} 40. h6 {[%clk
0:00:09.8]} 40... Rxd3 {[%clk 0:00:23.7]} 41. h7 {[%clk 0:00:09.5]} 41... Rxe3
{[%clk 0:00:17.4]} 42. h8=Q {[%clk 0:00:08.9]} 42... Rg3+ {[%clk 0:00:15.8]} 43.
Kh2 {[%clk 0:00:07.6]} 43... Rf3 {[%clk 0:00:15.5]} 44. Qhe8+ {[%clk 0:00:07.2]}
44... Kc7 {[%clk 0:00:14.9]} 45. Qfxe7+ {[%clk 0:00:07.4]} 45... Kb6 {[%clk
0:00:15.1]} 46. Qb8+ {[%clk 0:00:06.1]} 46... Ka5 {[%clk 0:00:15.4]} 47. Qexa7+
{[%clk 0:00:06.5]} 47... Ra6 {[%clk 0:00:14.5]} 48. Qbb6+ {[%clk 0:00:06.9]}
48... Ka4 {[%clk 0:00:13.5]} 49. Qaxa6# {[%clk 0:00:07.8]} 1-0

[Event "Late-Titled-Tuesday-Blitz-February-20-2024"]
[Site "Chess.com"]
[Date "2024.02.20"]
[Round "8"]
[White "dolynachess"]
[Black "Iuckyducky"]
[Result "1-0"]
[WhiteElo "2452"]
[BlackElo "2314"]
[TimeControl "180+1"]
[EndTime "15:28:35 PST"]
[Termination "dolynachess won by resignation"]

1. d4 {[%clk 0:03:00.9]} 1... Nf6 {[%clk 0:02:46.6]} 2. c4 {[%clk 0:03:01.8]}
2... e6 {[%clk 0:02:46.5]} 3. g3 {[%clk 0:03:01.5]} 3... d5 {[%clk 0:02:44.4]}
4. Bg2 {[%clk 0:03:01.6]} 4... dxc4 {[%clk 0:02:45]} 5. Nf3 {[%clk 0:03:00.7]}
5... Bb4+ {[%clk 0:02:45.1]} 6. Nbd2 {[%clk 0:02:59.8]} 6... b5 {[%clk
0:02:33.1]} 7. a4 {[%clk 0:02:56]} 7... c6 {[%clk 0:02:32.2]} 8. O-O {[%clk
0:02:44.1]} 8... O-O {[%clk 0:02:25.5]} 9. Qc2 {[%clk 0:02:43.6]} 9... Bb7
{[%clk 0:02:22.6]} 10. Rd1 {[%clk 0:02:42]} 10... Nbd7 {[%clk 0:02:16.6]} 11. b3
{[%clk 0:02:41.3]} 11... c5 {[%clk 0:02:07.7]} 12. dxc5 {[%clk 0:02:26]} 12...
c3 {[%clk 0:01:58.4]} 13. axb5 {[%clk 0:01:34.4]} 13... cxd2 {[%clk 0:01:31.5]}
14. c6 {[%clk 0:01:33.3]} 14... dxc1=Q {[%clk 0:01:31.3]} 15. Raxc1 {[%clk
0:01:33.7]} 15... Rc8 {[%clk 0:01:23.1]} 16. Qa2 {[%clk 0:01:20.6]} 16... Qb6
{[%clk 0:01:06.9]} 17. Rc4 {[%clk 0:00:39.4]} 17... Bxc6 {[%clk 0:01:06.5]} 18.
bxc6 {[%clk 0:00:36.2]} 18... Rxc6 {[%clk 0:01:06.4]} 19. Rxc6 {[%clk
0:00:33.5]} 19... Qxc6 {[%clk 0:01:07.3]} 20. Ne5 {[%clk 0:00:19.3]} 20... Qc7
{[%clk 0:01:06.4]} 21. Nxd7 {[%clk 0:00:19.3]} 21... Nxd7 {[%clk 0:01:06.1]} 22.
Qa4 {[%clk 0:00:19.2]} 22... Bd6 {[%clk 0:00:42.2]} 23. Qd4 {[%clk 0:00:17.3]}
23... Bc5 {[%clk 0:00:17.3]} 24. Qxd7 {[%clk 0:00:16.9]} 24... Qxd7 {[%clk
0:00:17.8]} 25. Rxd7 {[%clk 0:00:16.3]} 25... Rb8 {[%clk 0:00:17.6]} 26. Be4
{[%clk 0:00:13.4]} 26... g6 {[%clk 0:00:15.6]} 27. Bc2 {[%clk 0:00:13.3]} 27...
Kf8 {[%clk 0:00:15.7]} 28. Rc7 {[%clk 0:00:13.2]} 28... Bb6 {[%clk 0:00:13.4]}
29. Rc4 {[%clk 0:00:13.4]} 29... Ke7 {[%clk 0:00:12.5]} 30. Kg2 {[%clk
0:00:13.9]} 30... Kd6 {[%clk 0:00:12.3]} 31. e3 {[%clk 0:00:14.3]} 31... Bc5
{[%clk 0:00:10.3]} 32. h4 {[%clk 0:00:14.6]} 32... h5 {[%clk 0:00:10.1]} 33. Kf3
{[%clk 0:00:15.1]} 33... Rb4 {[%clk 0:00:09.4]} 34. Rc3 {[%clk 0:00:14.4]} 34...
a5 {[%clk 0:00:07.9]} 35. Ke2 {[%clk 0:00:14.4]} 35... Kd5 {[%clk 0:00:05.8]}
36. Rd3+ {[%clk 0:00:15.3]} 36... Kc6 {[%clk 0:00:05.4]} 37. Rd8 {[%clk
0:00:15]} 37... Be7 {[%clk 0:00:05]} 38. Re8 {[%clk 0:00:14]} 38... Kd6 {[%clk
0:00:05.4]} 39. Ra8 {[%clk 0:00:14.7]} 39... Rb5 {[%clk 0:00:04.6]} 40. Ra6+
{[%clk 0:00:12.9]} 40... Kd7 {[%clk 0:00:04.7]} 41. Kd3 {[%clk 0:00:13.1]} 41...
Bd8 {[%clk 0:00:04.4]} 42. Ra7+ {[%clk 0:00:12.7]} 42... Ke8 {[%clk 0:00:04.5]}
43. Kc3 {[%clk 0:00:11.3]} 43... Rc5+ {[%clk 0:00:04.5]} 44. Kb2 {[%clk
0:00:11.3]} 44... Rb5 {[%clk 0:00:04.4]} 45. Bd3 {[%clk 0:00:11.2]} 45... Rc5
{[%clk 0:00:04.6]} 46. Bc4 {[%clk 0:00:10.8]} 46... Bf6+ {[%clk 0:00:04.9]} 47.
Kc2 {[%clk 0:00:10.9]} 47... Bd8 {[%clk 0:00:05.5]} 48. Kd3 {[%clk 0:00:11.1]}
48... Bf6 {[%clk 0:00:05.7]} 49. f4 {[%clk 0:00:10.7]} 49... Bd8 {[%clk
0:00:06]} 50. e4 {[%clk 0:00:11.2]} 50... Bc7 {[%clk 0:00:04.6]} 51. e5 {[%clk
0:00:10.8]} 51... Bb6 {[%clk 0:00:03.8]} 52. Ra6 {[%clk 0:00:10.6]} 52... Bd8
{[%clk 0:00:02.8]} 53. Kd4 {[%clk 0:00:10.9]} 53... Kd7 {[%clk 0:00:03.3]} 54.
Kxc5 {[%clk 0:00:10.7]} 1-0

[Event "Late-Titled-Tuesday-Blitz-February-20-2024"]
[Site "Chess.com"]
[Date "2024.02.20"]
[Round "8"]
[White "DrVelja"]
[Black "IlyaGrigorjev"]
[Result "1-0"]
[WhiteElo "2988"]
[BlackElo "2907"]
[TimeControl "180+1"]
[EndTime "15:28:40 PST"]
[Termination "DrVelja won by resignation"]

1. e4 {[%clk 0:03:00.2]} 1... e5 {[%clk 0:03:00.2]} 2. Nf3 {[%clk 0:02:59.4]}
2... Nc6 {[%clk 0:03:00.8]} 3. Bb5 {[%clk 0:02:59.6]} 3... a6 {[%clk 0:03:00.9]}
4. Ba4 {[%clk 0:03:00.2]} 4... Nge7 {[%clk 0:03:01.4]} 5. O-O {[%clk 0:02:56.4]}
5... Ng6 {[%clk 0:03:00.8]} 6. d4 {[%clk 0:02:46.4]} 6... exd4 {[%clk
0:03:01.7]} 7. Nxd4 {[%clk 0:02:44.5]} 7... Nxd4 {[%clk 0:03:02.6]} 8. Qxd4
{[%clk 0:02:42.9]} 8... b5 {[%clk 0:03:03.3]} 9. Bb3 {[%clk 0:02:42.4]} 9... Bb7
{[%clk 0:03:04]} 10. Rd1 {[%clk 0:02:33.7]} 10... Qe7 {[%clk 0:03:03.9]} 11. c4
{[%clk 0:02:23.6]} 11... Qd6 {[%clk 0:03:00.4]} 12. Nc3 {[%clk 0:02:14.5]} 12...
Qxd4 {[%clk 0:02:47.2]} 13. Rxd4 {[%clk 0:02:15.4]} 13... Bc5 {[%clk 0:02:47.5]}
14. Rd1 {[%clk 0:02:14.8]} 14... bxc4 {[%clk 0:02:34.8]} 15. Bxc4 {[%clk
0:02:14.6]} 15... Ne5 {[%clk 0:02:35.4]} 16. Bd5 {[%clk 0:02:12.3]} 16... O-O-O
{[%clk 0:02:32.9]} 17. Bf4 {[%clk 0:02:03.5]} 17... Ng4 {[%clk 0:02:22.8]} 18.
Bg3 {[%clk 0:01:57.4]} 18... h5 {[%clk 0:02:19.4]} 19. Na4 {[%clk 0:01:56.8]}
19... Bxd5 {[%clk 0:02:00.5]} 20. Nxc5 {[%clk 0:01:44]} 20... Bb7 {[%clk
0:01:56]} 21. f3 {[%clk 0:01:28.7]} 21... Nf6 {[%clk 0:01:52.4]} 22. Rac1 {[%clk
0:01:17]} 22... d6 {[%clk 0:01:52]} 23. Nb3 {[%clk 0:01:14.2]} 23... h4 {[%clk
0:01:25.6]} 24. Bf2 {[%clk 0:01:12.7]} 24... Rh5 {[%clk 0:01:17.9]} 25. h3
{[%clk 0:01:11.2]} 25... Kb8 {[%clk 0:01:13.3]} 26. Nd4 {[%clk 0:01:08.6]} 26...
Nd7 {[%clk 0:01:09.3]} 27. b4 {[%clk 0:00:56.2]} 27... Ne5 {[%clk 0:01:04]} 28.
a4 {[%clk 0:00:53.5]} 28... g6 {[%clk 0:00:54.8]} 29. b5 {[%clk 0:00:51.3]}
29... axb5 {[%clk 0:00:55]} 30. Nxb5 {[%clk 0:00:43.8]} 30... Bc6 {[%clk
0:00:50]} 31. f4 {[%clk 0:00:29.9]} 31... Bxb5 {[%clk 0:00:50]} 32. axb5 {[%clk
0:00:26.5]} 32... Nd7 {[%clk 0:00:50.6]} 33. e5 {[%clk 0:00:26.6]} 33... dxe5
{[%clk 0:00:39.5]} 34. b6 {[%clk 0:00:27.2]} 34... cxb6 {[%clk 0:00:32.1]} 35.
Bxb6 {[%clk 0:00:22.5]} 35... Rc8 {[%clk 0:00:32.3]} 36. Ba7+ {[%clk 0:00:22.2]}
36... Kxa7 {[%clk 0:00:28.9]} 37. Rxc8 {[%clk 0:00:20.3]} 37... Kb7 {[%clk
0:00:24.2]} 38. Rc2 {[%clk 0:00:12.6]} 38... Nb6 {[%clk 0:00:21.9]} 39. Rb1
{[%clk 0:00:12]} 39... g5 {[%clk 0:00:11.7]} 40. Rcb2 {[%clk 0:00:11.9]} 40...
Rh6 {[%clk 0:00:12.3]} 41. fxg5 {[%clk 0:00:11.9]} 41... Re6 {[%clk 0:00:12.5]}
42. Rf2 {[%clk 0:00:08.4]} 42... Kc6 {[%clk 0:00:09.3]} 43. Rxf7 {[%clk
0:00:08.8]} 43... Nd5 {[%clk 0:00:10]} 44. g3 {[%clk 0:00:06.3]} 44... hxg3
{[%clk 0:00:09.5]} 45. h4 {[%clk 0:00:07]} 45... e4 {[%clk 0:00:07.1]} 46. h5
{[%clk 0:00:07.1]} 46... e3 {[%clk 0:00:07.8]} 47. g6 {[%clk 0:00:07.1]} 47...
e2 {[%clk 0:00:08]} 48. Re1 {[%clk 0:00:07.8]} 48... Nf6 {[%clk 0:00:05.7]} 49.
h6 {[%clk 0:00:06]} 49... Ng8 {[%clk 0:00:02]} 50. h7 {[%clk 0:00:06.1]} 50...
Rxg6 {[%clk 0:00:02.3]} 51. h8=Q {[%clk 0:00:06.6]} 51... Nf6 {[%clk 0:00:01.5]}
1-0

[Event "Late-Titled-Tuesday-Blitz-February-20-2024"]
[Site "Chess.com"]
[Date "2024.02.20"]
[Round "8"]
[White "Yushko_Olga"]
[Black "KorolDimitriy75"]
[Result "0-1"]
[WhiteElo "2218"]
[BlackElo "2420"]
[TimeControl "180+1"]
[EndTime "15:28:40 PST"]
[Termination "KorolDimitriy75 won by checkmate"]

1. d4 {[%clk 0:03:00.2]} 1... Nf6 {[%clk 0:03:00.4]} 2. c4 {[%clk 0:03:00.8]}
2... c5 {[%clk 0:03:00.7]} 3. d5 {[%clk 0:03:01]} 3... b5 {[%clk 0:03:00.8]} 4.
cxb5 {[%clk 0:03:01.9]} 4... a6 {[%clk 0:03:01.2]} 5. b6 {[%clk 0:03:02.8]} 5...
d6 {[%clk 0:03:01.8]} 6. Nc3 {[%clk 0:03:03.5]} 6... Nbd7 {[%clk 0:03:02.2]} 7.
e4 {[%clk 0:03:04.2]} 7... g6 {[%clk 0:03:02.4]} 8. Nf3 {[%clk 0:03:03]} 8...
Bg7 {[%clk 0:03:02.6]} 9. Bd3 {[%clk 0:03:03]} 9... O-O {[%clk 0:03:02.5]} 10.
h3 {[%clk 0:03:03.4]} 10... Nxb6 {[%clk 0:03:02.8]} 11. O-O {[%clk 0:03:03.2]}
11... e6 {[%clk 0:03:03]} 12. Be2 {[%clk 0:02:54.2]} 12... exd5 {[%clk
0:02:57.2]} 13. exd5 {[%clk 0:02:54.3]} 13... Bb7 {[%clk 0:02:51.4]} 14. Bg5
{[%clk 0:02:52.3]} 14... h6 {[%clk 0:02:47.9]} 15. Bxf6 {[%clk 0:02:43.4]} 15...
Qxf6 {[%clk 0:02:03.3]} 16. Qb3 {[%clk 0:02:34]} 16... Qd8 {[%clk 0:02:02.7]}
17. Rad1 {[%clk 0:02:31.5]} 17... Rb8 {[%clk 0:01:55.6]} 18. Rfe1 {[%clk
0:02:23.4]} 18... Re8 {[%clk 0:01:47.5]} 19. Rd2 {[%clk 0:01:57.4]} 19... Qc7
{[%clk 0:01:35.8]} 20. Nd1 {[%clk 0:01:57]} 20... c4 {[%clk 0:01:27.1]} 21. Qc2
{[%clk 0:01:56.9]} 21... Bxd5 {[%clk 0:01:23.1]} 22. Ne3 {[%clk 0:01:54.6]}
22... Be6 {[%clk 0:01:22.8]} 23. Nxc4 {[%clk 0:01:40.6]} 23... Nxc4 {[%clk
0:01:13.2]} 24. b3 {[%clk 0:01:40.7]} 24... d5 {[%clk 0:01:09.1]} 25. Rc1 {[%clk
0:01:35.8]} 25... Rec8 {[%clk 0:00:43.6]} 26. bxc4 {[%clk 0:01:34.6]} 26... dxc4
{[%clk 0:00:43.4]} 27. Nd4 {[%clk 0:01:34.5]} 27... Bd5 {[%clk 0:00:37.1]} 28.
Nf3 {[%clk 0:01:25.2]} 28... Qc5 {[%clk 0:00:34.4]} 29. Rcd1 {[%clk 0:01:19.4]}
29... Be6 {[%clk 0:00:31.9]} 30. Nd4 {[%clk 0:01:18.9]} 30... Bd7 {[%clk
0:00:29.1]} 31. Nf3 {[%clk 0:01:15.1]} 31... Rb2 {[%clk 0:00:24.8]} 32. Qc1
{[%clk 0:01:12.3]} 32... Rxd2 {[%clk 0:00:24.1]} 33. Rxd2 {[%clk 0:01:09.7]}
33... Be6 {[%clk 0:00:20.3]} 34. Rc2 {[%clk 0:01:06.3]} 34... c3 {[%clk
0:00:19.8]} 35. Bd3 {[%clk 0:01:04.7]} 35... Kh7 {[%clk 0:00:17.4]} 36. Qf4
{[%clk 0:00:57.3]} 36... Rd8 {[%clk 0:00:15.2]} 37. Ne1 {[%clk 0:00:53.6]} 37...
a5 {[%clk 0:00:12]} 38. Qa4 {[%clk 0:00:50.7]} 38... Qb4 {[%clk 0:00:12]} 39.
Qc6 {[%clk 0:00:48.7]} 39... Rd6 {[%clk 0:00:10]} 40. Qe4 {[%clk 0:00:46.8]}
40... Rd4 {[%clk 0:00:09.1]} 41. Qe3 {[%clk 0:00:46.2]} 41... Qe7 {[%clk
0:00:07.4]} 42. Nf3 {[%clk 0:00:45.8]} 42... Rd8 {[%clk 0:00:06.5]} 43. Ne1
{[%clk 0:00:39.1]} 43... Qd6 {[%clk 0:00:06.4]} 44. a4 {[%clk 0:00:34.3]} 44...
Qb4 {[%clk 0:00:05.9]} 45. Bb5 {[%clk 0:00:33]} 45... Bf5 {[%clk 0:00:04.5]} 46.
Rc1 {[%clk 0:00:32.7]} 46... Qb2 {[%clk 0:00:03.7]} 47. g4 {[%clk 0:00:32.1]}
47... Rd2 {[%clk 0:00:02.8]} 48. gxf5 {[%clk 0:00:30.7]} 48... Qxc1 {[%clk
0:00:02]} 49. fxg6+ {[%clk 0:00:28.5]} 49... fxg6 {[%clk 0:00:02.9]} 50. Bd3
{[%clk 0:00:27.4]} 50... Rd1 {[%clk 0:00:02.4]} 51. Qg3 {[%clk 0:00:24.7]} 51...
Rxe1+ {[%clk 0:00:02.1]} 52. Kh2 {[%clk 0:00:25.3]} 52... Qg5 {[%clk 0:00:02]}
53. Qc7 {[%clk 0:00:22.9]} 53... Qg1# {[%clk 0:00:02]} 0-1

[Event "Late-Titled-Tuesday-Blitz-February-20-2024"]
[Site "Chess.com"]
[Date "2024.02.20"]
[Round "8"]
[White "NtcPou"]
[Black "Teidi96"]
[Result "0-1"]
[WhiteElo "2006"]
[BlackElo "2259"]
[TimeControl "180+1"]
[EndTime "15:28:40 PST"]
[Termination "Teidi96 won by resignation"]

1. e4 {[%clk 0:03:00.9]} 1... Nf6 {[%clk 0:03:00.9]} 2. e5 {[%clk 0:02:59.7]}
2... Nd5 {[%clk 0:03:01.4]} 3. d4 {[%clk 0:02:59.5]} 3... d6 {[%clk 0:03:01.6]}
4. Nf3 {[%clk 0:02:59.6]} 4... Nc6 {[%clk 0:03:00.6]} 5. exd6 {[%clk 0:02:41.5]}
5... exd6 {[%clk 0:02:59.3]} 6. Be2 {[%clk 0:02:42]} 6... Be7 {[%clk 0:02:58.9]}
7. O-O {[%clk 0:02:41.1]} 7... Bf6 {[%clk 0:02:59.1]} 8. c4 {[%clk 0:02:39.4]}
8... Nb6 {[%clk 0:02:59]} 9. Be3 {[%clk 0:02:32.8]} 9... O-O {[%clk 0:02:57.2]}
10. Nc3 {[%clk 0:02:32.2]} 10... Bf5 {[%clk 0:02:52.5]} 11. b3 {[%clk
0:02:30.7]} 11... d5 {[%clk 0:02:52.3]} 12. c5 {[%clk 0:02:26.8]} 12... Nc8
{[%clk 0:02:52.8]} 13. Qd2 {[%clk 0:02:03.1]} 13... h6 {[%clk 0:02:45.7]} 14. a3
{[%clk 0:02:01.2]} 14... a5 {[%clk 0:02:42.4]} 15. h3 {[%clk 0:01:56.3]} 15...
N8e7 {[%clk 0:02:41.3]} 16. Nb5 {[%clk 0:01:45.3]} 16... g5 {[%clk 0:02:37.8]}
17. Nh2 {[%clk 0:01:39.1]} 17... Bg6 {[%clk 0:02:34.1]} 18. f4 {[%clk
0:01:35.7]} 18... gxf4 {[%clk 0:02:26.2]} 19. Bxf4 {[%clk 0:01:33.5]} 19... Bg7
{[%clk 0:02:15.6]} 20. Bxc7 {[%clk 0:01:22.8]} 20... Qd7 {[%clk 0:02:09.1]} 21.
Bd6 {[%clk 0:01:15.7]} 21... Nf5 {[%clk 0:02:06.2]} 22. Bg4 {[%clk 0:01:13.3]}
22... Rfe8 {[%clk 0:01:47.1]} 23. Bxf5 {[%clk 0:01:03.9]} 23... Bxf5 {[%clk
0:01:46.8]} 24. Nf3 {[%clk 0:00:58.7]} 24... Be4 {[%clk 0:01:38.5]} 25. Nc7
{[%clk 0:00:56.2]} 25... Bxf3 {[%clk 0:01:33.9]} 26. Nxa8 {[%clk 0:00:54.3]}
26... Bxd4+ {[%clk 0:01:21]} 27. Kh2 {[%clk 0:00:48.3]} 27... Rxa8 {[%clk
0:01:07.1]} 28. Rxf3 {[%clk 0:00:43.8]} 28... Bxa1 {[%clk 0:01:04.1]} 29. Qxh6
{[%clk 0:00:42.7]} 29... Be5+ {[%clk 0:00:55.1]} 30. Kh1 {[%clk 0:00:26.4]}
30... Re8 {[%clk 0:00:30.8]} 31. Qg5+ {[%clk 0:00:22.4]} 31... Bg7 {[%clk
0:00:18.6]} 32. Rg3 {[%clk 0:00:22.3]} 32... Re1+ {[%clk 0:00:17.5]} 33. Kh2
{[%clk 0:00:22.3]} 33... f5 {[%clk 0:00:14.3]} 34. Bf4 {[%clk 0:00:08.7]} 34...
Nd4 {[%clk 0:00:11.8]} 35. Be5 {[%clk 0:00:08.1]} 35... Rxe5 {[%clk 0:00:10.5]}
36. Qf4 {[%clk 0:00:08]} 36... Qe7 {[%clk 0:00:06.9]} 37. Qxd4 {[%clk
0:00:07.5]} 37... Qe6 {[%clk 0:00:05.7]} 38. Qf4 {[%clk 0:00:06.5]} 38... Re4
{[%clk 0:00:05.3]} 39. Qg5 {[%clk 0:00:06.4]} 39... Qf7 {[%clk 0:00:04.8]} 40.
Qd8+ {[%clk 0:00:06.8]} 40... Re8 {[%clk 0:00:04.8]} 41. Qd6 {[%clk 0:00:06.3]}
41... f4 {[%clk 0:00:04.6]} 42. Rg4 {[%clk 0:00:05.2]} 42... f3 {[%clk
0:00:04.1]} 43. Qg3 {[%clk 0:00:04.8]} 43... f2 {[%clk 0:00:03.6]} 44. Rxg7+
{[%clk 0:00:04.9]} 44... Qxg7 {[%clk 0:00:04.2]} 45. Qxf2 {[%clk 0:00:05.8]}
45... Qf7 {[%clk 0:00:04.2]} 46. Qg3+ {[%clk 0:00:05.9]} 46... Kf8 {[%clk
0:00:04.9]} 47. Qd6+ {[%clk 0:00:06.2]} 47... Qe7 {[%clk 0:00:05.4]} 48. Qxd5
{[%clk 0:00:07.1]} 48... Qe5+ {[%clk 0:00:05.8]} 49. Qxe5 {[%clk 0:00:07.2]}
49... Rxe5 {[%clk 0:00:06.7]} 50. b4 {[%clk 0:00:06.8]} 50... axb4 {[%clk
0:00:07.6]} 51. axb4 {[%clk 0:00:07.5]} 51... Re4 {[%clk 0:00:08.2]} 52. b5
{[%clk 0:00:07.4]} 52... Re5 {[%clk 0:00:08.6]} 53. c6 {[%clk 0:00:07.9]} 53...
bxc6 {[%clk 0:00:09.5]} 54. bxc6 {[%clk 0:00:08.4]} 54... Rc5 {[%clk 0:00:10]}
0-1

[Event "Late-Titled-Tuesday-Blitz-February-20-2024"]
[Site "Chess.com"]
[Date "2024.02.20"]
[Round "8"]
[White "Bilan_Danila"]
[Black "Ajedrez_con_German"]
[Result "1-0"]
[WhiteElo "2477"]
[BlackElo "2617"]
[TimeControl "180+1"]
[EndTime "15:28:41 PST"]
[Termination "Bilan_Danila won on time"]

1. d4 {[%clk 0:02:59.6]} 1... d5 {[%clk 0:02:59.7]} 2. Nf3 {[%clk 0:02:57.7]}
2... Nf6 {[%clk 0:02:59.7]} 3. c4 {[%clk 0:02:57.2]} 3... dxc4 {[%clk
0:03:00.2]} 4. e3 {[%clk 0:02:55]} 4... e6 {[%clk 0:03:00.1]} 5. Bxc4 {[%clk
0:02:55.4]} 5... a6 {[%clk 0:03:00.8]} 6. O-O {[%clk 0:02:54.3]} 6... c5 {[%clk
0:03:01.3]} 7. dxc5 {[%clk 0:02:53.3]} 7... Bxc5 {[%clk 0:03:01.5]} 8. a3 {[%clk
0:02:53.8]} 8... Qxd1 {[%clk 0:02:55.9]} 9. Rxd1 {[%clk 0:02:53.6]} 9... Ke7
{[%clk 0:02:56.5]} 10. b4 {[%clk 0:02:53]} 10... Bd6 {[%clk 0:02:56]} 11. Bb2
{[%clk 0:02:52.6]} 11... b5 {[%clk 0:02:54.3]} 12. Be2 {[%clk 0:02:53.2]} 12...
Bb7 {[%clk 0:02:53.9]} 13. Nbd2 {[%clk 0:02:53.4]} 13... Nbd7 {[%clk 0:02:52.6]}
14. Nb3 {[%clk 0:02:53.7]} 14... Rac8 {[%clk 0:02:40.8]} 15. Na5 {[%clk
0:02:53.7]} 15... Ba8 {[%clk 0:02:40.2]} 16. Nd4 {[%clk 0:02:45.2]} 16... Rc7
{[%clk 0:01:50.7]} 17. Bf3 {[%clk 0:02:21.7]} 17... Bxf3 {[%clk 0:01:48.7]} 18.
gxf3 {[%clk 0:02:20.7]} 18... Rhc8 {[%clk 0:01:45.9]} 19. f4 {[%clk 0:02:15.1]}
19... Nb6 {[%clk 0:01:39.5]} 20. Nf3 {[%clk 0:02:01.4]} 20... Nc4 {[%clk
0:01:36.2]} 21. Nxc4 {[%clk 0:01:57.6]} 21... Rxc4 {[%clk 0:01:31.6]} 22. Be5
{[%clk 0:01:40.2]} 22... Bxe5 {[%clk 0:01:22.6]} 23. Nxe5 {[%clk 0:01:41.1]}
23... R4c7 {[%clk 0:01:13.9]} 24. a4 {[%clk 0:01:40.2]} 24... Nd7 {[%clk
0:00:41.6]} 25. Nf3 {[%clk 0:01:14]} 25... Rb8 {[%clk 0:00:17.8]} 26. axb5
{[%clk 0:01:06.3]} 26... Rxb5 {[%clk 0:00:17.6]} 27. Rd4 {[%clk 0:00:48.1]}
27... Rcb7 {[%clk 0:00:13.8]} 28. Rxa6 {[%clk 0:00:45.6]} 28... Rxb4 {[%clk
0:00:13.5]} 29. Rxb4 {[%clk 0:00:45.9]} 29... Rxb4 {[%clk 0:00:14.4]} 30. Ra7
{[%clk 0:00:46.1]} 30... f6 {[%clk 0:00:07.8]} 31. Nd4 {[%clk 0:00:43.3]} 31...
Rc4 {[%clk 0:00:08]} 32. Kg2 {[%clk 0:00:38.5]} 32... g6 {[%clk 0:00:06.5]} 33.
Ra6 {[%clk 0:00:29.7]} 33... Nf8 {[%clk 0:00:03.9]} 34. Kf3 {[%clk 0:00:27.8]}
34... Rc7 {[%clk 0:00:03.6]} 35. h4 {[%clk 0:00:23.3]} 35... Kf7 {[%clk
0:00:04.1]} 36. Nb5 {[%clk 0:00:22]} 36... Rd7 {[%clk 0:00:04.2]} 37. Rc6 {[%clk
0:00:17.8]} 37... Ke7 {[%clk 0:00:04]} 38. Ra6 {[%clk 0:00:17.6]} 38... Kf7
{[%clk 0:00:04.2]} 39. Rc6 {[%clk 0:00:17.6]} 39... Ke7 {[%clk 0:00:04.6]} 40.
Ra6 {[%clk 0:00:18]} 40... Rb7 {[%clk 0:00:04.1]} 41. Nd6 {[%clk 0:00:17.3]}
41... Rd7 {[%clk 0:00:03.5]} 42. Ne4 {[%clk 0:00:17.2]} 42... Kf7 {[%clk
0:00:02.8]} 43. Ra5 {[%clk 0:00:15.6]} 43... Re7 {[%clk 0:00:02.6]} 44. h5
{[%clk 0:00:15.2]} 44... Nd7 {[%clk 0:00:02.7]} 45. h6 {[%clk 0:00:11.3]} 45...
Nf8 {[%clk 0:00:01.3]} 46. Nd6+ {[%clk 0:00:10.8]} 46... Kg8 {[%clk 0:00:01.7]}
47. Ra8 {[%clk 0:00:11.1]} 47... Rd7 {[%clk 0:00:01.4]} 48. Ne4 {[%clk
0:00:11.4]} 1-0